bitfinex/quotes_ETHUSD_20251125
["timestamp","ask_amount","ask_price","bid_price","bid_amount"]
[1764109154110,0.4906,2927.7,2927.1,3.41635065]
[1764109154909,0.4906,2927.7,2927.1,6.8327013]
[1764109155127,0.0262,2927.7,2927.1,7.3140013]
[1764109155925,0.4644,2927.6,2927.0,0.72559411]
[1764109157434,3.88021764,2927.6,2927.0,4.14194999]
[1764109158030,0.4644,2927.5,2926.9,3.41658409]
[1764109159415,3.88029063,2927.5,2926.9,3.41658409]
[1764109159701,7.29618126,2927.5,2926.8,3.60629683]
[1764109159922,0.4644,2927.4,2926.9,0.72559411]
[1764109160928,3.41589063,2927.5,2926.9,1.18529411]
[1764109161336,0.002,2927.6,2927.4,0.4581]
[1764109161505,0.002,2927.6,2927.5,0.4581]
[1764109162437,0.002,2927.6,2927.5,0.9178]
[1764109163632,0.002,2927.6,2927.5,5.05927796]
[1764109164736,0.002,2927.6,2927.5,5.27827796]
[1764109165609,0.002,2927.6,2926.9,0.4597]
[1764109165610,0.4856,2927.6,2926.9,0.4597]
[1764109165822,0.4836,2927.5,2927.0,0.219]
[1764109166027,0.4836,2927.5,2927.0,0.94459411]
[1764109166403,0.4836,2927.5,2927.0,1.40429411]
[1764109167802,0.4836,2927.5,2927.2,0.72559411]
[1764109168229,0.002,2927.6,2927.2,0.72559411]
[1764109170319,0.002,2927.6,2927.3,3.41611724]
[1764109171120,0.4631,2927.6,2927.3,3.41611724]
[1764109171634,0.4836,2927.4,2926.6,0.4597]
[1764109171835,0.0519,2927.3,2926.7,0.218]
[1764109172340,0.0519,2927.3,2926.7,0.6777]
[1764109172640,0.0519,2927.3,2926.7,1.40329411]
[1764109172807,0.0519,2927.3,2926.9,0.72559411]
[1764109174134,0.0519,2927.3,2927.0,3.41646737]
[1764109174327,0.0519,2927.3,2927.1,0.72559411]
[1764109174830,0.4793,2927.2,2927.1,0.72559411]
[1764109175839,0.4793,2927.2,2926.7,0.4597]
[1764109176050,0.49976201,2927.1,2926.3,0.4597]
[1764109176256,0.218,2927.3,2926.6,0.4597]
[1764109176415,0.31768268,2927.2,2926.6,0.4597]
[1764109176610,0.31768268,2927.1,2926.6,0.4597]
[1764109176947,0.218,2927.3,2926.6,0.4597]
[1764109177156,0.31768803,2927.2,2926.6,0.4597]
[1764109177356,0.31768803,2927.1,2926.6,0.4607]
[1764109177531,4.09523335,2927.3,2926.6,0.001]
[1764109177735,0.31763599,2927.2,2926.6,0.001]
[1764109177924,0.31763599,2927.1,2926.6,0.001]
[1764109178121,0.218,2927.3,2926.6,1.18629411]
[1764109178322,0.218,2927.3,2927.0,0.4581]
[1764109178727,0.218,2927.3,2927.0,0.9178]
[1764109179044,0.218,2927.3,2927.0,0.4581]
[1764109180857,0.4836,2927.1,2926.8,3.41667323]
[1764109181156,0.0592,2927.0,2926.8,6.83337406]
[1764109181748,0.0592,2927.0,2926.8,3.41667323]
[1764109182841,0.0592,2927.0,2926.7,6.83359371]
[1764109185661,0.0592,2927.0,2926.6,0.001]
[1764109185860,0.218,2927.3,2926.9,0.4581]
[1764109186668,0.218,2927.3,2926.9,0.9178]
[1764109187166,0.002,2927.4,2926.9,0.4581]
[1764109187735,3.41800139,2927.4,2926.9,0.4581]
[1764109187958,0.4836,2927.0,2926.7,0.72559411]
[1764109188184,0.002,2927.4,2927.3,0.4581]
[1764109188730,0.002,2927.4,2927.3,0.9178]
[1764109189130,0.002,2927.4,2927.3,1.73775411]
[1764109190162,0.002,2927.4,2927.3,4.85318135]
[1764109192978,0.002,2927.4,2927.3,4.51712135]
[1764109193185,0.002,2927.4,2927.3,4.97802135]
[1764109194539,0.002,2927.4,2927.3,4.29912135]
[1764109194744,0.4693,2927.4,2927.3,4.14171135]
[1764109195451,0.002,2927.4,2927.3,4.14171135]
[1764109196145,0.002,2927.4,2927.3,4.14271135]
[1764109198480,0.4693,2927.4,2927.3,0.001]
[1764109198683,0.9333,2927.4,2927.3,0.001]
[1764109199377,0.4693,2927.4,2927.3,0.001]
[1764109199785,0.9333,2927.4,2927.3,0.001]
[1764109201045,0.002,2927.4,2927.3,0.4898]
[1764109201303,0.002,2927.4,2927.3,0.9403]
[1764109201499,0.002,2927.6,2927.3,0.9403]
[1764109201663,0.002,2927.6,2927.5,5.99668792]
[1764109201852,0.002,2927.6,2927.5,9.41257177]
[1764109202053,0.002,2927.6,2927.5,9.86307177]
[1764109202266,0.002,2927.6,2927.5,9.95743177]
[1764109203454,0.8997,2928.9,2927.6,0.72559411]
[1764109203774,0.8997,2928.9,2928.2,6.83013454]
[1764109204957,0.4928,2928.8,2928.1,4.14077135]
[1764109205187,0.4928,2928.8,2928.1,7.55595525]
[1764109205366,0.4069,2928.9,2928.1,8.00645525]
[1764109205884,0.4069,2928.9,2928.1,11.42163915]
[1764109206273,0.4069,2928.9,2928.1,8.00645525]
[1764109207066,0.8997,2928.9,2928.1,8.00645525]
[1764109207266,4.31395369,2928.9,2928.1,7.55595525]
[1764109207482,0.4928,2928.8,2928.1,7.55595525]
[1764109208409,0.4928,2929.1,2928.2,0.4505]
[1764109208685,0.1914,2928.9,2928.2,0.218]
[1764109209386,0.4928,2929.1,2928.2,0.6685]
[1764109209584,0.4928,2929.1,2928.2,0.76286]
[1764109209818,0.4928,2929.1,2928.3,0.4505]
[1764109210394,0.4928,2929.1,2928.4,6.82966806]
[1764109210955,0.6743,2928.5,2928.4,0.72559411]
[1764109211265,3.90683406,2929.1,2928.4,0.72559411]
[1764109211469,0.4829,2928.5,2928.4,0.72559411]
[1764109211784,0.1914,2928.8,2928.4,0.72559411]
[1764109211978,0.4928,2928.7,2928.4,0.72559411]
[1764109212591,0.4928,2928.7,2928.5,3.41471743]
[1764109212993,0.1914,2928.8,2928.5,3.41471743]
[1764109213193,0.6842,2928.8,2928.5,3.41471743]
[1764109213573,3.63195862,2929.2,2928.5,6.82943486]
[1764109213901,0.4928,2929.1,2928.5,6.82943486]
[1764109214269,0.6743,2928.6,2928.4,4.14038596]
[1764109214468,0.3145,2928.5,2928.4,4.14038596]
[1764109214672,0.8073,2928.5,2927.6,0.001]
[1764109214869,0.8073,2928.5,2927.6,0.219]
[1764109214870,0.4812,2928.3,2927.6,0.219]
[1764109215073,0.974,2928.3,2927.7,3.41565051]
[1764109215324,0.974,2928.3,2927.7,6.83130102]
[1764109215605,0.4812,2928.3,2927.8,0.72559411]
[1764109215982,0.4928,2928.2,2927.8,0.72559411]
[1764109216718,0.4094,2928.6,2928.0,0.72559411]
[1764109216913,0.4928,2928.4,2928.0,0.72559411]
[1764109217220,0.4829,2928.1,2927.6,0.001]
[1764109217371,0.4812,2927.7,2927.6,3.41676718]
[1764109217710,0.4928,2928.3,2927.6,3.41676718]
[1764109217909,0.898304,2928.5,2927.6,3.41676718]
[1764109218106,0.898304,2928.5,2927.6,6.83253436]
[1764109218313,0.4928,2928.4,2927.6,6.83253436]
[1764109218610,3.41495065,2928.3,2927.6,0.001]
[1764109218779,3.9076972,2928.4,2927.6,0.001]
[1764109218982,0.4094,2928.6,2927.8,0.72559411]
[1764109219184,6.5634,2928.9,2927.8,0.72559411]
[1764109219416,0.9042,2928.9,2927.9,0.4505]
[1764109219998,0.4928,2928.8,2927.9,0.4505]
[1764109220726,0.4928,2928.8,2927.8,0.72559411]
[1764109220727,3.90719982,2928.8,2927.8,0.72559411]
[1764109221025,3.41448424,2928.7,2927.8,0.72559411]
[1764109221330,3.89578424,2928.7,2927.8,0.72559411]
[1764109221527,0.4813,2928.6,2927.8,0.72559411]
[1764109222326,3.4144222,2928.8,2927.8,0.72559411]
[1764109222533,0.4813,2928.7,2927.8,0.72559411]
[1764109222826,3.89588582,2928.7,2928.0,0.72559411]
[1764109223334,0.4813,2928.6,2928.0,0.72559411]
[1764109224001,0.4114,2928.9,2928.0,0.72559411]
[1764109224198,0.4813,2928.7,2928.0,0.72559411]
[1764109224810,0.4813,2928.7,2928.1,6.8303678]
[1764109225897,0.4114,2928.9,2928.1,6.8303678]
[1764109226229,0.4813,2928.8,2928.1,6.8303678]
[1764109227126,0.4812,2928.2,2928.1,3.4151839]
[1764109227534,0.4813,2928.6,2928.1,3.4151839]
[1764109228219,0.4813,2928.6,2928.1,6.8303678]
[1764109229040,0.4813,2928.6,2928.1,3.4151839]
[1764109229339,0.4813,2928.6,2928.1,6.8303678]
[1764109229514,0.4812,2928.2,2927.6,0.001]
[1764109229705,0.4812,2928.2,2927.8,0.72559411]
[1764109231173,0.4812,2928.2,2928.0,0.72559411]
[1764109231342,0.4813,2928.1,2928.0,0.72559411]
[1764109231540,0.8088,2928.1,2928.0,0.72559411]
[1764109231738,0.3275,2928.1,2927.8,3.41552316]
[1764109232323,0.3275,2928.1,2927.8,6.831057]
[1764109232639,0.4796,2927.9,2927.6,6.83249538]
[1764109232844,0.4813,2928.3,2927.6,3.4167282]
[1764109233227,3.89631949,2928.3,2927.6,0.001]
[1764109233742,0.4813,2928.2,2927.6,0.001]
[1764109236121,0.4812,2927.7,2927.6,0.001]
[1764109241774,0.1989,2927.8,2927.6,0.001]
[1764109241933,0.4812,2927.7,2927.6,0.001]
[1764109242127,0.1989,2927.8,2927.6,0.001]
[1764109242962,0.9625,2927.7,2927.6,0.001]
[1764109243324,0.4812,2927.7,2927.6,0.001]
[1764109243627,0.9625,2927.7,2927.6,0.001]
[1764109245167,0.218,2928.0,2927.6,0.4658]
[1764109245331,0.1989,2927.9,2927.6,0.001]
[1764109245665,0.6802,2927.9,2927.6,0.001]
[1764109245831,0.6802,2927.9,2927.6,3.41676718]
[1764109246194,0.6802,2927.9,2927.6,6.83253436]
[1764109246658,0.1989,2927.9,2927.6,6.83253436]
[1764109246861,0.4812,2927.7,2927.6,3.41676718]
[1764109247164,0.9625,2927.7,2927.6,0.001]
[1764109247332,0.4812,2927.7,2927.6,0.001]
[1764109248537,0.1989,2927.9,2927.6,0.4658]
[1764109249269,0.6993,2928.0,2927.6,0.4658]
[1764109251279,0.6993,2928.0,2927.7,3.41565051]
[1764109252781,0.6993,2928.0,2927.8,3.69010973]
[1764109253150,0.4657,2927.9,2927.8,3.69010973]
[1764109254483,0.218,2928.0,2927.8,7.10564357]
[1764109254647,0.218,2928.0,2927.8,3.69010973]
[1764109254848,0.4657,2927.9,2927.8,3.69010973]
[1764109255049,0.9581,2927.9,2927.8,3.69010973]
[1764109255988,1.1401,2927.9,2927.6,0.001]
[1764109257355,0.3411,2927.7,2927.6,3.41675847]
[1764109257566,0.6744,2927.9,2927.6,6.83252565]
[1764109257784,0.182,2927.9,2927.6,6.83252565]
[1764109258197,0.218,2928.0,2927.8,3.69010973]
[1764109258359,0.002,2928.2,2927.9,0.4856]
[1764109259262,0.3198676,2928.2,2927.9,0.4856]
[1764109259463,0.8122676,2928.2,2928.0,3.41530054]
[1764109259684,0.002,2928.2,2928.1,3.69010973]
[1764109259985,0.002,2928.2,2928.1,5.35940384]
[1764109260393,0.002,2928.2,2928.1,4.90130384]
[1764109260558,0.4751,2928.2,2928.1,0.94359411]
[1764109260755,0.002,2928.2,2928.1,4.63370384]
[1764109261868,0.002,2928.2,2928.1,4.14077801]
[1764109261869,0.9305,2928.2,2928.1,4.14077801]
[1764109262167,0.4751,2928.2,2928.1,4.14077801]
[1764109262370,0.9305,2928.2,2928.1,4.14077801]
[1764109262702,0.002,2928.2,2928.1,7.83088774]
[1764109262905,0.4751,2928.2,2928.1,7.83088774]
[1764109264492,0.9305,2928.2,2928.0,3.41518469]
[1764109264799,0.4751,2928.2,2928.0,7.10529442]
[1764109265001,0.4751,2928.2,2928.0,10.52059496]
[1764109265403,0.4751,2928.2,2928.0,7.10529442]
[1764109266406,0.4751,2928.2,2928.0,10.52059496]
[1764109268181,0.002,2928.2,2928.1,0.4604]
[1764109268576,0.4751,2928.2,2928.0,10.52059496]
[1764109268772,0.002,2928.2,2928.0,10.52059496]
[1764109269907,0.002,2928.2,2928.1,0.4604]
[1764109270989,0.002,2928.2,2928.0,10.52059496]
[1764109271301,0.4731,2928.1,2928.0,7.10529442]
[1764109271496,0.002,2928.2,2928.0,7.10529442]
[1764109271811,0.002,2928.2,2928.0,10.52059496]
[1764109272491,0.4731,2928.1,2927.6,0.72659411]
[1764109272691,0.662,2927.7,2927.6,0.001]
[1764109272920,0.4554,2928.1,2927.6,3.41676718]
[1764109273502,0.4731,2927.7,2927.6,3.41676718]
[1764109275007,0.9285,2927.7,2927.6,3.41676718]
[1764109276810,0.4731,2927.7,2927.6,3.41676718]
[1764109277920,0.9285,2927.7,2927.6,0.001]
[1764109282433,0.002,2928.2,2927.6,0.4764]
[1764109282605,1.050804,2927.7,2927.6,0.001]
[1764109282802,1.58572615,2927.7,2927.6,0.001]
[1764109283009,2.08462615,2927.7,2927.6,0.001]
[1764109283529,5.50027666,2927.7,2927.6,0.001]
[1764109283904,0.405504,2927.6,2927.5,0.001]
[1764109284099,2.28542026,2927.6,2927.5,0.001]
[1764109285607,5.70118744,2927.6,2927.5,0.001]
[1764109287031,12.80706435,2927.6,2927.4,0.001]
[1764109287224,0.405504,2927.4,2927.1,0.001]
[1764109287425,0.855704,2927.2,2927.1,0.001]
[1764109287733,5.8133542,2927.2,2927.1,0.001]
[1764109288134,5.95029196,2927.2,2927.1,0.001]
[1764109289255,5.63336981,2927.2,2927.1,0.001]
[1764109290562,9.63894566,2927.2,2927.1,0.001]
[1764109290719,1.13109811,2927.1,2926.6,0.001]
[1764109291071,7.00071523,2927.1,2926.6,0.001]
[1764109291275,7.00071523,2927.1,2926.4,0.001]
[1764109291276,0.405504,2926.6,2926.4,0.001]
[1764109291435,0.954504,2926.6,2926.4,0.001]
[1764109291622,1.453404,2926.6,2926.4,0.001]
[1764109292253,5.59593243,2926.6,2926.4,0.001]
[1764109293157,6.04796101,2926.6,2926.4,0.001]
[1764109293336,5.73290114,2926.6,2926.4,0.001]
[1764109294139,9.42301087,2926.6,2926.4,0.001]
[1764109294354,10.72837,2926.5,2926.4,0.001]
[1764109294647,11.9899382,2926.5,2926.4,0.001]
[1764109294852,11.9899382,2926.5,2926.2,0.001]
[1764109294853,0.405504,2926.4,2926.2,0.001]
[1764109295057,4.74258193,2926.3,2926.2,0.001]
[1764109295263,1.236604,2926.3,2926.2,0.001]
[1764109296261,11.02388862,2926.3,2926.2,0.001]
[1764109296660,14.71399835,2926.3,2926.2,0.001]
[1764109298167,21.05644535,2926.3,2926.2,0.001]
[1764109299169,11.12699404,2926.3,2926.2,0.001]
[1764109299460,10.83638462,2926.3,2926.2,0.001]
[1764109299662,11.24188862,2926.3,2926.2,0.001]
[1764109300087,10.74298862,2926.3,2926.2,0.001]
[1764109301954,11.24188862,2926.3,2926.2,0.001]
[1764109302701,10.74298862,2926.3,2926.2,0.001]
[1764109303650,7.944804,2926.3,2926.2,0.001]
[1764109303850,12.08768273,2926.3,2926.2,0.001]
[1764109304063,19.75644151,2926.3,2926.2,0.001]
[1764109305061,19.83086251,2926.3,2926.2,0.001]
[1764109306291,20.31605526,2926.3,2926.2,0.001]
[1764109307296,20.31605526,2926.3,2925.6,0.001]
[1764109307297,11.10509811,2926.2,2925.6,0.001]
[1764109307596,5.18629811,2926.0,2925.6,0.001]
[1764109307781,5.50089389,2926.0,2925.6,0.001]
[1764109307973,5.99979389,2926.0,2925.6,0.001]
[1764109308292,1.67019978,2926.0,2925.6,0.001]
[1764109309061,5.81342888,2926.0,2925.6,0.001]
[1764109309993,5.95044028,2926.0,2925.6,0.001]
[1764109310408,16.86996347,2926.0,2925.6,0.001]
[1764109310704,20.91867232,2926.0,2925.6,0.001]
[1764109311108,17.31467232,2926.0,2925.6,0.001]
[1764109311308,15.80172772,2926.0,2925.6,0.001]
[1764109312312,26.89408272,2926.0,2925.6,0.001]
[1764109312921,33.26408272,2926.0,2925.6,0.001]
[1764109313105,32.63635872,2926.0,2925.6,0.001]
[1764109313301,32.78425872,2926.0,2925.6,0.001]
[1764109313705,16.94749572,2926.0,2925.6,0.001]
[1764109313875,13.04627072,2926.0,2925.6,0.001]
[1764109316306,16.07091672,2926.0,2925.6,0.001]
[1764109316616,13.04627072,2926.0,2925.6,0.001]
[1764109319319,13.96081926,2926.0,2925.6,0.001]
[1764109319621,11.69066672,2926.0,2925.6,0.001]
[1764109320211,12.09617072,2926.0,2925.6,0.001]
[1764109320822,11.55365532,2926.0,2925.9,0.474]
[1764109320997,12.00735532,2926.0,2925.9,0.001]
[1764109321192,11.95915932,2926.0,2925.9,0.001]
[1764109321395,11.95915932,2926.0,2925.9,0.474]
[1764109321924,3.95023077,2926.0,2925.9,0.474]
[1764109322236,0.53259578,2926.0,2925.9,0.932]
[1764109323108,0.53259578,2926.0,2925.9,4.3497518]
[1764109323315,0.218,2926.0,2925.9,4.3497518]
[1764109325134,0.002,2926.1,2925.9,4.34974679]
[1764109325342,0.22,2926.1,2926.0,0.931]
[1764109327034,0.22,2926.1,2926.0,4.34863499]
[1764109332111,0.002,2926.1,2926.0,4.34863499]
[1764109332307,0.002,2926.4,2926.0,11.18390497]
[1764109332527,0.002,2926.4,2926.3,0.6064]
[1764109332736,0.002,2926.4,2926.3,1.0644]
[1764109333749,0.002,2926.4,2926.1,0.1334]
[1764109335038,0.002,2926.4,2926.3,0.473]
[1764109336249,0.002,2926.4,2926.1,0.1334]
[1764109336565,0.405504,2926.3,2925.9,0.001]
[1764109336755,0.218,2926.2,2925.9,0.459]
[1764109338729,0.218,2926.2,2926.1,0.6064]
[1764109340652,0.22,2926.2,2926.1,0.6064]
[1764109342466,0.22,2926.2,2926.1,1.1013]
[1764109343898,0.22,2926.2,2926.1,0.6064]
[1764109345142,0.22,2926.2,2926.1,1.1013]
[1764109346474,0.22,2926.2,2926.1,0.6064]
[1764109347577,0.22,2926.2,2925.9,0.001]
[1764109347799,0.22,2926.2,2926.1,0.4842]
[1764109349896,4.1180014,2926.2,2925.9,0.001]
[1764109350045,0.479,2926.0,2925.9,0.001]
[1764109350461,4.11232024,2926.2,2925.9,0.001]
[1764109352455,0.22,2926.2,2926.1,0.4842]
[1764109352674,0.22,2926.2,2926.1,0.6176]
[1764109353158,0.22,2926.2,2926.1,0.4842]
[1764109353485,0.7006,2926.2,2925.9,0.001]
[1764109353791,0.22,2926.2,2926.1,0.6176]
[1764109354386,0.22,2926.2,2925.9,0.4959]
[1764109354387,0.7006,2926.2,2925.9,0.001]
[1764109354889,0.22,2926.2,2926.1,0.4842]
[1764109355394,0.22,2926.2,2926.1,1.1125]
[1764109355694,0.22,2926.2,2926.1,0.6176]
[1764109355892,0.002,2926.7,2926.4,0.4842]
[1764109356081,0.002,2926.7,2926.6,0.4842]
[1764109356560,0.002,2926.7,2926.6,4.39603432]
[1764109360367,0.002,2926.7,2926.6,5.12162843]
[1764109360562,0.002,2926.7,2926.6,9.92001191]
[1764109360774,0.002,2927.7,2926.7,1.70469411]
[1764109360969,0.22,2927.7,2926.9,4.6263782]
[1764109361381,0.002,2927.7,2927.3,0.72559411]
[1764109361580,0.002,2927.7,2927.6,0.6678]
[1764109361977,0.002,2927.7,2927.6,6.68667759]
[1764109362391,0.002,2927.7,2927.6,1.88829411]
[1764109362906,0.002,2927.7,2927.6,5.30406129]
[1764109366609,0.002,2927.7,2927.6,8.99364357]
[1764109367981,0.002,2927.7,2927.6,4.80916129]
[1764109368318,0.002,2927.7,2927.6,8.49874357]
[1764109370815,0.002,2927.7,2927.6,12.64212585]
[1764109372418,0.002,2927.7,2927.6,12.73648585]
[1764109373996,0.002,2927.7,2927.6,12.64212585]
[1764109375895,0.002,2928.2,2927.6,19.47366021]
[1764109376114,0.002,2928.2,2927.9,4.87357639]
[1764109376304,0.002,2928.2,2928.0,0.72559411]
[1764109376523,0.002,2928.2,2928.1,5.06133639]
[1764109376720,0.002,2928.2,2928.1,5.54928822]
[1764109376906,0.002,2928.2,2928.1,5.51513639]
[1764109377617,0.002,2928.3,2928.2,0.09436]
[1764109377835,0.002,2928.3,2928.2,0.9122]
[1764109378423,0.002,2928.5,2928.4,0.09436]
[1764109378627,0.002,2928.5,2928.4,0.55276]
[1764109378830,0.002,2928.5,2928.4,1.00656]
[1764109380354,0.002,2928.5,2928.4,4.42139403]
[1764109380554,0.47,2928.5,2928.4,3.41483403]
[1764109380848,0.002,2928.5,2928.4,5.05902814]
[1764109381051,0.002,2928.5,2928.4,4.60782814]
[1764109381486,0.9297,2928.5,2927.7,0.09436]
[1764109381659,0.9297,2928.5,2927.9,0.72559411]
[1764109381660,0.3717,2928.4,2927.9,0.72559411]
[1764109381961,0.002,2928.5,2927.7,10.24695153]
[1764109382115,0.002,2928.5,2927.8,0.4512]
[1764109382448,0.002,2928.5,2928.0,0.72559411]
[1764109382654,0.4617,2928.5,2928.0,0.72559411]
[1764109384330,0.468,2928.1,2928.0,4.14089465]
[1764109384530,0.4617,2928.5,2928.0,7.55619519]
[1764109384746,0.002,2928.5,2928.0,8.02359519]
[1764109385046,0.002,2928.5,2928.0,11.43889573]
[1764109385261,0.002,2928.5,2928.1,0.4512]
[1764109385464,0.21249147,2928.7,2928.1,0.4512]
[1764109385631,0.21249147,2928.7,2928.0,7.55619519]
[1764109385833,0.4597,2928.8,2928.0,7.55619519]
[1764109386046,0.6777,2928.8,2928.1,0.4512]
[1764109386469,0.6777,2928.8,2928.2,6.83013454]
[1764109387067,0.218,2928.8,2928.2,6.83013454]
[1764109387371,0.4597,2928.7,2928.2,6.83013454]
[1764109387965,0.468,2928.3,2928.2,3.41506727]
[1764109388458,0.468,2928.3,2928.1,6.83035996]
[1764109392480,0.6777,2928.8,2928.2,0.4674]
[1764109392782,0.002,2928.7,2928.2,0.4674]
[1764109392946,0.4617,2928.7,2928.2,0.4674]
[1764109393380,0.4617,2928.7,2928.3,6.8299013]
[1764109394286,0.218,2928.6,2928.3,6.8299013]
[1764109394674,0.468,2928.4,2928.3,3.41495065]
[1764109394878,0.468,2928.4,2928.1,0.72559411]
[1764109395053,0.468,2928.1,2928.0,0.001]
[1764109395482,0.9277,2928.1,2928.0,0.001]
[1764109397055,4.3428839,2928.1,2928.0,0.001]
[1764109398573,4.5608839,2928.1,2928.0,0.001]
[1764109398784,4.9663879,2928.1,2928.0,0.001]
[1764109399187,5.69198201,2928.1,2928.0,0.001]
[1764109399389,0.405504,2927.9,2927.7,0.001]
[1764109399683,5.11393195,2927.8,2927.7,0.001]
[1764109399883,5.57363195,2927.8,2927.7,0.001]
[1764109402112,2.15809811,2927.8,2927.7,0.001]
[1764109402413,5.79163195,2927.8,2927.7,0.001]
[1764109403436,1.245,2927.8,2927.7,0.001]
[1764109403589,0.7139,2927.8,2927.7,0.001]
[1764109403786,0.4959,2927.8,2927.7,0.001]
[1764109404004,0.7139,2927.8,2927.7,0.001]
[1764109404430,0.218,2927.8,2927.7,0.001]
[1764109404630,0.218,2927.8,2927.7,0.4978]
[1764109404797,0.7139,2927.8,2927.7,0.001]
[1764109410223,0.218,2927.8,2927.7,0.001]
[1764109410742,1.1709,2927.8,2927.7,0.001]
[1764109411806,0.7139,2927.8,2927.7,0.001]
[1764109412600,0.002,2928.0,2927.8,3.41553384]
[1764109412794,0.22,2928.0,2927.7,3.41660631]
[1764109413530,0.4959,2927.8,2927.7,0.001]
[1764109413830,0.002,2928.0,2927.9,0.4968]
[1764109414127,0.22,2928.0,2927.9,0.4968]
[1764109414530,0.22,2928.0,2927.7,6.83230102]
[1764109414726,0.22,2928.0,2927.7,0.001]
[1764109416324,0.677,2928.0,2927.7,0.001]
[1764109416846,0.22,2928.0,2927.7,0.001]
[1764109418163,0.677,2928.0,2927.7,0.001]
[1764109418814,0.22,2928.0,2927.7,0.001]
[1764109419119,0.002,2928.0,2927.9,0.4968]
[1764109419254,0.4959,2927.8,2927.7,0.001]
[1764109419855,0.9529,2927.8,2927.7,0.001]
[1764109420059,0.4959,2927.8,2927.7,0.001]
[1764109420959,0.9529,2927.8,2927.7,0.001]
[1764109423368,4.36843384,2927.8,2927.7,0.001]
[1764109423570,4.77393784,2927.8,2927.7,0.001]
[1764109423883,0.7139,2927.8,2927.7,0.001]
[1764109424192,0.4959,2927.8,2927.7,0.001]
[1764109424362,0.7139,2927.8,2927.7,0.001]
[1764109424947,1.1709,2927.8,2927.7,0.001]
[1764109425348,4.58643384,2927.8,2927.7,0.001]
[1764109425544,1.1709,2927.8,2927.7,0.001]
[1764109428791,0.7139,2927.8,2927.7,0.001]
[1764109430771,0.218,2927.8,2927.7,0.001]
[1764109430971,0.6704,2927.8,2927.7,0.001]
[1764109431704,0.218,2927.8,2927.7,0.001]
[1764109432778,0.218,2927.8,2927.7,0.4723]
[1764109433390,0.218,2927.8,2927.7,0.001]
[1764109433615,0.6704,2927.8,2927.7,0.001]
[1764109435615,0.218,2927.8,2927.7,0.001]
[1764109435806,0.6704,2927.8,2927.7,0.001]
[1764109436112,0.4524,2927.8,2927.7,0.001]
[1764109436315,0.6694,2927.8,2927.7,0.001]
[1764109437895,0.217,2927.8,2927.7,0.001]
[1764109438224,0.217,2927.8,2927.7,0.4723]
[1764109439024,0.217,2927.8,2927.7,3.88795051]
[1764109439919,0.002,2928.0,2927.7,0.4723]
[1764109440119,0.217,2927.8,2927.7,0.4723]
[1764109441049,0.002,2928.0,2927.7,3.88795051]
[1764109441350,0.002,2928.0,2927.9,0.487]
[1764109441845,0.002,2928.0,2927.9,0.9521]
[1764109442732,0.002,2928.0,2927.9,0.487]
[1764109442929,0.002,2928.0,2927.9,0.9521]
[1764109443113,0.002,2928.0,2927.9,4.36751719]
[1764109444433,0.002,2928.0,2927.9,3.90241719]
[1764109445203,0.4802,2928.0,2927.7,0.001]
[1764109445508,0.1977,2927.9,2927.7,3.41664307]
[1764109446013,1.1545,2927.8,2927.7,0.001]
[1764109447859,4.57003384,2927.8,2927.7,0.001]
[1764109449045,1.1545,2927.8,2927.7,0.001]
[1764109449338,4.57003384,2927.8,2927.7,0.001]
[1764109449540,1.1545,2927.8,2927.7,0.001]
[1764109451113,4.57003384,2927.8,2927.7,0.001]
[1764109451305,0.4782,2927.8,2927.7,0.001]
[1764109451507,0.002,2928.0,2927.7,0.488]
[1764109451741,0.002,2928.0,2927.9,0.487]
[1764109452108,0.219,2928.0,2927.9,0.9521]
[1764109452412,0.002,2928.0,2927.9,0.9521]
[1764109453242,0.002,2928.0,2927.9,5.0931113]
[1764109453742,0.219,2928.0,2927.9,3.41541719]
[1764109453930,0.219,2928.0,2927.9,4.36751719]
[1764109454312,0.002,2928.0,2927.9,4.36751719]
[1764109456014,0.002,2928.0,2927.9,4.40167136]
[1764109456350,0.002,2928.0,2927.9,4.36751719]
[1764109456533,0.002,2928.0,2927.9,5.0931113]
[1764109456732,0.002,2928.0,2927.9,4.6280113]
[1764109457335,0.002,2928.0,2927.9,5.0931113]
[1764109457851,0.4802,2928.0,2927.9,4.1410113]
[1764109458055,0.002,2928.0,2927.9,4.6280113]
[1764109458567,0.002,2928.0,2927.9,5.0931113]
[1764109460267,0.002,2928.0,2927.9,4.6280113]
[1764109460472,0.002,2928.0,2927.9,5.0995113]
[1764109464642,0.002,2928.0,2927.9,5.1005113]
[1764109464826,0.002,2928.0,2927.9,6.9449697]
[1764109465031,0.002,2928.0,2927.9,5.1005113]
[1764109469483,0.002,2928.0,2927.9,7.0393297]
[1764109471174,0.002,2928.0,2927.9,6.9449697]
[1764109471711,0.002,2928.0,2927.9,6.4734697]
[1764109471878,0.002,2928.0,2927.9,5.1005113]
[1764109475791,0.002,2928.0,2927.9,4.6290113]
[1764109475995,0.4599,2928.0,2927.9,4.1420113]
[1764109476296,0.9276,2928.0,2927.9,3.41641719]
[1764109477192,0.9276,2928.0,2927.9,0.001]
[1764109478091,0.002,2928.0,2927.9,0.001]
[1764109478293,0.002,2928.0,2927.9,0.98985417]
[1764109478469,0.002,2928.0,2927.9,0.9557]